[Event "January 9 Early 2024"]
[Site "https://www.chess.com"]
[Date "2024.01.11"]
[Round "8"]
[White "Guevara Sanchez, Erick Marvin"]
[Black "Crocker, Philip J"]
[Result "1-0"]
[Board "24"]
[TimeControl "180+1"]
[WhiteFideId "6700136"]
[BlackFideId "403180"]
[WhiteElo "2212"]
[BlackElo "2079"]
[WhiteTeam "ESA"]
[BlackTeam "ENG"]
[WhiteClock "0:01:30"]
[BlackClock "0:00:25"]

1. e4 {[%clk 0:03:00]}  Nf6 {[%clk 0:02:57]} 2. e5 {[%clk 0:02:58]}  Nd5 {[%clk 0:02:57]} 3. c4 {[%clk 0:02:59]}  Nb6 {[%clk 0:02:57]} 4. c5 {[%clk 0:02:59]}  Nd5 {[%clk 0:02:56]} 5. Nc3 {[%clk 0:03:00]}  c6 {[%clk 0:02:56]} 6. Nxd5 {[%clk 0:02:56]}  cxd5 {[%clk 0:02:55]} 7. d4 {[%clk 0:02:56]}  d6 {[%clk 0:02:55]} 8. cxd6 {[%clk 0:02:55]}  exd6 {[%clk 0:02:55]} 9. f4 {[%clk 0:02:55]}  dxe5 {[%clk 0:02:49]} 10. dxe5 {[%clk 0:02:56]}  Bb4+ {[%clk 0:02:41]} 11. Bd2 {[%clk 0:02:51]}  Qa5 {[%clk 0:02:34]} 12. Nf3 {[%clk 0:02:49]}  O-O {[%clk 0:02:31]} 13. Bd3 {[%clk 0:02:47]}  Bxd2+ {[%clk 0:02:20]} 14. Nxd2 {[%clk 0:02:43]}  Nc6 {[%clk 0:02:16]} 15. O-O {[%clk 0:02:40]}  f5 {[%clk 0:02:03]} 16. Kh1 {[%clk 0:02:27]}  Be6 {[%clk 0:02:01]} 17. Nf3 {[%clk 0:02:26]}  h6 {[%clk 0:01:56]} 18. Nh4 {[%clk 0:02:24]}  g6 {[%clk 0:01:52]} 19. Nxg6 {[%clk 0:02:20]}  Rf7 {[%clk 0:01:28]} 20. Qh5 {[%clk 0:02:19]}  Kh7 {[%clk 0:01:16]} 21. Nh4 {[%clk 0:02:19]}  Ne7 {[%clk 0:01:05]} 22. g4 {[%clk 0:02:11]}  Rg8 {[%clk 0:00:51]} 23. gxf5 {[%clk 0:02:01]}  Nxf5 {[%clk 0:00:37]} 24. Bxf5+ {[%clk 0:01:40]}  Rxf5 {[%clk 0:00:34]} 25. Nxf5 {[%clk 0:01:37]}  Bxf5 {[%clk 0:00:27]} 26. Qxf5+ {[%clk 0:01:36]}  Kh8 {[%clk 0:00:25]} 27. Qf6+ {[%clk 0:01:35]}  Kh7 {[%clk 0:00:25]} 28. Rg1 {[%clk 0:01:30]} 1-0

[Event "January 9 Early 2024"]
[Site "https://www.chess.com"]
[Date "2024.01.11"]
[Round "8"]
[White "Limontaite, Simona"]
[Black "Hejazipour, Mitra"]
[Result "1-0"]
[Board "25"]
[TimeControl "180+1"]
[WhiteFideId "12802506"]
[BlackFideId "12505951"]
[WhiteElo "2325"]
[BlackElo "2432"]
[WhiteTeam "LTU"]
[BlackTeam "FRA"]
[WhiteClock "0:01:04"]
[BlackClock "0:01:21"]

1. d4 {[%clk 0:03:00]}  Nf6 {[%clk 0:02:58]} 2. c4 {[%clk 0:03:01]}  e6 {[%clk 0:02:58]} 3. Nc3 {[%clk 0:03:01]}  Bb4 {[%clk 0:02:56]} 4. Qc2 {[%clk 0:03:01]}  c5 {[%clk 0:02:53]} 5. dxc5 {[%clk 0:02:57]}  Na6 {[%clk 0:02:52]} 6. a3 {[%clk 0:02:55]}  Bxc3+ {[%clk 0:02:50]} 7. Qxc3 {[%clk 0:02:56]}  Nxc5 {[%clk 0:02:50]} 8. e3 {[%clk 0:02:53]}  O-O {[%clk 0:02:50]} 9. Nf3 {[%clk 0:02:53]}  Nce4 {[%clk 0:02:49]} 10. Qc2 {[%clk 0:02:53]}  d5 {[%clk 0:02:48]} 11. Bd3 {[%clk 0:02:53]}  b6 {[%clk 0:02:48]} 12. O-O {[%clk 0:02:53]}  Bb7 {[%clk 0:02:48]} 13. Rd1 {[%clk 0:02:48]}  Qe7 {[%clk 0:02:48]} 14. cxd5 {[%clk 0:02:45]}  exd5 {[%clk 0:02:47]} 15. Nd4 {[%clk 0:02:45]}  Rac8 {[%clk 0:02:46]} 16. Qe2 {[%clk 0:02:45]}  Qe5 {[%clk 0:02:33]} 17. f3 {[%clk 0:02:43]}  Nd6 {[%clk 0:02:26]} 18. Bd2 {[%clk 0:02:39]}  Rfe8 {[%clk 0:02:26]} 19. Qf2 {[%clk 0:02:29]}  Nc4 {[%clk 0:02:22]} 20. Bxc4 {[%clk 0:02:23]}  dxc4 {[%clk 0:02:20]} 21. e4 {[%clk 0:02:23]}  g6 {[%clk 0:02:15]} 22. Bc3 {[%clk 0:02:23]}  Qg5 {[%clk 0:02:10]} 23. h4 {[%clk 0:02:09]}  Qf4 {[%clk 0:02:07]} 24. Ne2 {[%clk 0:01:56]}  Nxe4 {[%clk 0:01:56]} 25. Nxf4 {[%clk 0:01:56]}  Nxf2 {[%clk 0:01:55]} 26. Kxf2 {[%clk 0:01:56]}  Rcd8 {[%clk 0:01:52]} 27. Bf6 {[%clk 0:01:41]}  Rxd1 {[%clk 0:01:50]} 28. Rxd1 {[%clk 0:01:42]}  Bc6 {[%clk 0:01:48]} 29. Rd8 {[%clk 0:01:42]}  Rxd8 {[%clk 0:01:48]} 30. Bxd8 {[%clk 0:01:43]}  Kf8 {[%clk 0:01:47]} 31. Ke3 {[%clk 0:01:40]}  Ke8 {[%clk 0:01:47]} 32. Bf6 {[%clk 0:01:39]}  Kd7 {[%clk 0:01:46]} 33. Nh3 {[%clk 0:01:27]}  Ke6 {[%clk 0:01:44]} 34. Bd4 {[%clk 0:01:27]}  h5 {[%clk 0:01:42]} 35. Ng5+ {[%clk 0:01:26]}  Ke7 {[%clk 0:01:41]} 36. Ne4 {[%clk 0:01:26]}  Ke6 {[%clk 0:01:41]} 37. Nd2 {[%clk 0:01:26]}  Bd5 {[%clk 0:01:40]} 38. Nb1 {[%clk 0:01:24]}  Bc6 {[%clk 0:01:39]} 39. Nc3 {[%clk 0:01:24]}  Kf5 {[%clk 0:01:36]} 40. g3 {[%clk 0:01:21]}  Ke6 {[%clk 0:01:36]} 41. Kf4 {[%clk 0:01:15]}  Kd6 {[%clk 0:01:33]} 42. g4 {[%clk 0:01:13]}  Kc7 {[%clk 0:01:26]} 43. Ne4 {[%clk 0:01:07]}  a6 {[%clk 0:01:21]} 44. gxh5 {[%clk 0:01:04]}  gxh5 {[%clk 0:01:21]} 45. Nf6 {[%clk 0:01:05]}  b5 {[%clk 0:01:20]} 46. Nxh5 {[%clk 0:01:05]}  Kd6 {[%clk 0:01:21]} 47. Nf6 {[%clk 0:01:04]} 1-0

[Event "January 9 Early 2024"]
[Site "https://www.chess.com"]
[Date "2024.01.11"]
[Round "8"]
[White "Tejedor Fuente, Enrique"]
[Black "Belov, Alexei"]
[Result "1/2-1/2"]
[Board "28"]
[TimeControl "180+1"]
[WhiteFideId "2299100"]
[BlackFideId "4128206"]
[WhiteElo "2723"]
[BlackElo "2569"]
[WhiteTeam "ESP"]
[BlackTeam "RUS"]
[WhiteClock "0:02:08"]
[BlackClock "0:00:16"]

1. c3 {[%clk 0:02:59]}  d5 {[%clk 0:02:59]} 2. d4 {[%clk 0:02:59]}  e6 {[%clk 0:02:58]} 3. Nf3 {[%clk 0:02:59]}  Nf6 {[%clk 0:02:56]} 4. g3 {[%clk 0:03:00]}  Be7 {[%clk 0:02:55]} 5. Bg2 {[%clk 0:03:00]}  O-O {[%clk 0:02:55]} 6. O-O {[%clk 0:03:01]}  Nbd7 {[%clk 0:02:55]} 7. Nbd2 {[%clk 0:03:00]}  c5 {[%clk 0:02:54]} 8. Re1 {[%clk 0:03:00]}  b6 {[%clk 0:02:54]} 9. e4 {[%clk 0:03:00]}  dxe4 {[%clk 0:02:51]} 10. Ng5 {[%clk 0:03:00]}  Bb7 {[%clk 0:02:42]} 11. Ngxe4 {[%clk 0:02:59]}  Qc8 {[%clk 0:02:39]} 12. dxc5 {[%clk 0:02:53]}  Nxc5 {[%clk 0:02:35]} 13. Nxc5 {[%clk 0:02:50]}  Bxc5 {[%clk 0:02:31]} 14. Nb3 {[%clk 0:02:48]}  Rd8 {[%clk 0:02:23]} 15. Qe2 {[%clk 0:02:48]}  Be7 {[%clk 0:02:06]} 16. Bg5 {[%clk 0:02:46]}  h6 {[%clk 0:02:03]} 17. Bxf6 {[%clk 0:02:46]}  Bxf6 {[%clk 0:02:03]} 18. Bxb7 {[%clk 0:02:46]}  Qxb7 {[%clk 0:02:03]} 19. Rad1 {[%clk 0:02:47]}  a5 {[%clk 0:01:54]} 20. Nd2 {[%clk 0:02:45]}  Be7 {[%clk 0:01:41]} 21. Qe4 {[%clk 0:02:44]}  Qxe4 {[%clk 0:01:30]} 22. Nxe4 {[%clk 0:02:45]}  Rxd1 {[%clk 0:01:22]} 23. Rxd1 {[%clk 0:02:46]}  Rd8 {[%clk 0:01:21]} 24. Rxd8+ {[%clk 0:02:45]}  Bxd8 {[%clk 0:01:21]} 25. Kf1 {[%clk 0:02:45]}  Kf8 {[%clk 0:01:21]} 26. Ke2 {[%clk 0:02:45]}  Ke7 {[%clk 0:01:21]} 27. Kd3 {[%clk 0:02:45]}  Kd7 {[%clk 0:01:18]} 28. a4 {[%clk 0:02:45]}  Kc6 {[%clk 0:01:17]} 29. Kc4 {[%clk 0:02:45]}  f5 {[%clk 0:01:13]} 30. Nd2 {[%clk 0:02:45]}  e5 {[%clk 0:01:09]} 31. f3 {[%clk 0:02:46]}  Bg5 {[%clk 0:01:04]} 32. Nf1 {[%clk 0:02:46]}  Bc1 {[%clk 0:01:03]} 33. b4 {[%clk 0:02:45]}  h5 {[%clk 0:00:57]} 34. h3 {[%clk 0:02:45]}  g6 {[%clk 0:00:52]} 35. g4 {[%clk 0:02:44]}  Bf4 {[%clk 0:00:49]} 36. gxh5 {[%clk 0:02:43]}  gxh5 {[%clk 0:00:49]} 37. h4 {[%clk 0:02:26]}  axb4 {[%clk 0:00:26]} 38. cxb4 {[%clk 0:02:27]}  Kd6 {[%clk 0:00:25]} 39. Kb5 {[%clk 0:02:24]}  Kc7 {[%clk 0:00:24]} 40. Kc4 {[%clk 0:02:17]}  Kc6 {[%clk 0:00:23]} 41. a5 {[%clk 0:02:13]}  bxa5 {[%clk 0:00:21]} 42. bxa5 {[%clk 0:02:14]}  e4 {[%clk 0:00:16]} 43. fxe4 {[%clk 0:02:14]}  fxe4 {[%clk 0:00:16]} 44. Kd4 {[%clk 0:02:14]}  Kb5 {[%clk 0:00:16]} 45. Kxe4 {[%clk 0:02:14]}  Bc7 {[%clk 0:00:16]} 46. Kf5 {[%clk 0:02:10]}  Bd8 {[%clk 0:00:15]} 47. Ng3 {[%clk 0:02:10]}  Bxh4 {[%clk 0:00:15]} 48. Nxh5 {[%clk 0:02:08]}  Kxa5 {[%clk 0:00:16]} 1/2-1/2

[Event "January 9 Early 2024"]
[Site "https://www.chess.com"]
[Date "2024.01.11"]
[Round "8"]
[White "Sokolovsky, Yahli"]
[Black "Bjerre, Jonas Buhl"]
[Result "0-1"]
[Board "29"]
[TimeControl "180+1"]
[WhiteFideId "2820242"]
[BlackFideId "1444948"]
[WhiteElo "2774"]
[BlackElo "2970"]
[WhiteTeam "ISR"]
[BlackTeam "DEN"]
[WhiteClock "0:00:02"]
[BlackClock "0:01:29"]

1. b3 {[%clk 0:03:00]}  Nf6 {[%clk 0:02:58]} 2. Bb2 {[%clk 0:02:46]}  d5 {[%clk 0:02:57]} 3. e3 {[%clk 0:02:44]}  c5 {[%clk 0:02:55]} 4. Nf3 {[%clk 0:02:42]}  a6 {[%clk 0:02:55]} 5. d4 {[%clk 0:02:42]}  Nc6 {[%clk 0:02:55]} 6. Bd3 {[%clk 0:02:31]}  Bg4 {[%clk 0:02:54]} 7. Nbd2 {[%clk 0:02:29]}  e6 {[%clk 0:02:54]} 8. a3 {[%clk 0:02:09]}  cxd4 {[%clk 0:02:53]} 9. exd4 {[%clk 0:02:09]}  Bd6 {[%clk 0:02:53]} 10. O-O {[%clk 0:02:09]}  O-O {[%clk 0:02:52]} 11. Qe1 {[%clk 0:02:10]}  Nd7 {[%clk 0:02:38]} 12. Ne5 {[%clk 0:01:59]}  Ndxe5 {[%clk 0:02:33]} 13. dxe5 {[%clk 0:02:00]}  Bc5 {[%clk 0:02:34]} 14. Kh1 {[%clk 0:01:30]}  Rc8 {[%clk 0:02:30]} 15. f4 {[%clk 0:01:27]}  Bh5 {[%clk 0:02:16]} 16. f5 {[%clk 0:01:22]}  exf5 {[%clk 0:02:11]} 17. Bxf5 {[%clk 0:01:23]}  Rc7 {[%clk 0:02:10]} 18. Qg3 {[%clk 0:01:08]}  Bd4 {[%clk 0:02:02]} 19. Bxd4 {[%clk 0:00:57]}  Nxd4 {[%clk 0:02:03]} 20. Bxh7+ {[%clk 0:00:56]}  Kxh7 {[%clk 0:02:01]} 21. Qd3+ {[%clk 0:00:57]}  Kg8 {[%clk 0:01:54]} 22. Qxd4 {[%clk 0:00:56]}  Rxc2 {[%clk 0:01:53]} 23. Rf2 {[%clk 0:00:42]}  Qg5 {[%clk 0:01:42]} 24. Raf1 {[%clk 0:00:29]}  Rfc8 {[%clk 0:01:39]} 25. Qxd5 {[%clk 0:00:26]}  Rd8 {[%clk 0:01:34]} 26. Qa5 {[%clk 0:00:16]}  Rdxd2 {[%clk 0:01:30]} 27. Rxd2 {[%clk 0:00:04]}  Qxd2 {[%clk 0:01:30]} 28. Rg1 {[%clk 0:00:02]}  Qxa5 {[%clk 0:01:29]} 0-1

[Event "January 9 Early 2024"]
[Site "https://www.chess.com"]
[Date "2024.01.11"]
[Round "8"]
[White "Golubev, Mikhail"]
[Black "Rustamov, Rustam"]
[Result "0-1"]
[Board "30"]
[TimeControl "180+1"]
[WhiteFideId "14100983"]
[BlackFideId "13440110"]
[WhiteElo "2621"]
[BlackElo "2883"]
[WhiteTeam "UKR"]
[BlackTeam "AZE"]
[WhiteClock "0:00:01"]
[BlackClock "0:01:59"]

1. e4 {[%clk 0:03:00]}  c5 {[%clk 0:03:00]} 2. Nf3 {[%clk 0:03:00]}  d6 {[%clk 0:03:00]} 3. d4 {[%clk 0:03:00]}  cxd4 {[%clk 0:03:01]} 4. Nxd4 {[%clk 0:03:00]}  Nf6 {[%clk 0:03:02]} 5. Nc3 {[%clk 0:03:00]}  e5 {[%clk 0:03:02]} 6. Bb5+ {[%clk 0:02:51]}  Bd7 {[%clk 0:03:02]} 7. Bxd7+ {[%clk 0:02:48]}  Qxd7 {[%clk 0:03:03]} 8. Nde2 {[%clk 0:02:32]}  Qc6 {[%clk 0:03:02]} 9. O-O {[%clk 0:02:21]}  Nxe4 {[%clk 0:03:01]} 10. Nxe4 {[%clk 0:02:14]}  Qxe4 {[%clk 0:03:02]} 11. Nc3 {[%clk 0:02:13]}  Qc6 {[%clk 0:03:02]} 12. f4 {[%clk 0:02:06]}  Nd7 {[%clk 0:03:02]} 13. Kh1 {[%clk 0:01:50]}  Be7 {[%clk 0:03:01]} 14. Nd5 {[%clk 0:01:49]}  Bd8 {[%clk 0:02:58]} 15. b3 {[%clk 0:01:11]}  Nf6 {[%clk 0:02:55]} 16. c4 {[%clk 0:01:03]}  Nxd5 {[%clk 0:02:53]} 17. cxd5 {[%clk 0:01:02]}  Qd7 {[%clk 0:02:53]} 18. fxe5 {[%clk 0:00:56]}  dxe5 {[%clk 0:02:54]} 19. Bb2 {[%clk 0:00:56]}  Bf6 {[%clk 0:02:52]} 20. Re1 {[%clk 0:00:46]}  Qd6 {[%clk 0:02:47]} 21. a4 {[%clk 0:00:13]}  Rd8 {[%clk 0:02:39]} 22. Qh5 {[%clk 0:00:08]}  O-O {[%clk 0:02:34]} 23. Ba3 {[%clk 0:00:08]}  Qxd5 {[%clk 0:02:35]} 24. Bxf8 {[%clk 0:00:08]}  Rxf8 {[%clk 0:02:36]} 25. Qd1 {[%clk 0:00:04]}  Qe6 {[%clk 0:02:35]} 26. Rc1 {[%clk 0:00:04]}  Rd8 {[%clk 0:02:34]} 27. Qc2 {[%clk 0:00:04]}  g6 {[%clk 0:02:31]} 28. Qc4 {[%clk 0:00:04]}  Qxc4 {[%clk 0:02:20]} 29. Rxc4 {[%clk 0:00:03]}  Rd3 {[%clk 0:02:18]} 30. b4 {[%clk 0:00:03]}  Rd7 {[%clk 0:02:13]} 31. g3 {[%clk 0:00:03]}  h5 {[%clk 0:02:13]} 32. Kg2 {[%clk 0:00:02]}  Bg7 {[%clk 0:02:13]} 33. Re2 {[%clk 0:00:02]}  f5 {[%clk 0:02:14]} 34. Rc8+ {[%clk 0:00:02]}  Kh7 {[%clk 0:02:14]} 35. Rec2 {[%clk 0:00:02]}  e4 {[%clk 0:02:14]} 36. R8c7 {[%clk 0:00:02]}  Rd4 {[%clk 0:02:06]} 37. Rxb7 {[%clk 0:00:02]}  Kh6 {[%clk 0:02:06]} 38. Rcc7 {[%clk 0:00:02]}  Rd2+ {[%clk 0:02:04]} 39. Kf1 {[%clk 0:00:01]}  Be5 {[%clk 0:01:59]} 0-1

[Event "January 9 Early 2024"]
[Site "https://www.chess.com"]
[Date "2024.01.11"]
[Round "8"]
[White "Demin, Vladimir"]
[Black "Agrest, Inna"]
[Result "1-0"]
[Board "33"]
[TimeControl "180+1"]
[WhiteFideId "4167457"]
[BlackFideId "1708830"]
[WhiteElo "2572"]
[BlackElo "2358"]
[WhiteTeam "RUS"]
[BlackTeam "SWE"]
[WhiteClock "0:01:36"]
[BlackClock "0:00:08"]

1. d4 {[%clk 0:02:59]}  Nf6 {[%clk 0:02:59]} 2. Nc3 {[%clk 0:02:49]}  d5 {[%clk 0:02:59]} 3. Bf4 {[%clk 0:02:49]}  e6 {[%clk 0:02:58]} 4. Nb5 {[%clk 0:02:49]}  Na6 {[%clk 0:02:58]} 5. e3 {[%clk 0:02:49]}  Be7 {[%clk 0:02:58]} 6. Nf3 {[%clk 0:02:50]}  O-O {[%clk 0:02:58]} 7. Be2 {[%clk 0:02:50]}  c6 {[%clk 0:02:49]} 8. Nc3 {[%clk 0:02:45]}  h6 {[%clk 0:02:46]} 9. Bxa6 {[%clk 0:02:40]}  bxa6 {[%clk 0:02:47]} 10. O-O {[%clk 0:02:41]}  c5 {[%clk 0:02:46]} 11. Ne5 {[%clk 0:02:39]}  Qb6 {[%clk 0:02:42]} 12. Na4 {[%clk 0:02:38]}  Qb5 {[%clk 0:02:41]} 13. c3 {[%clk 0:02:34]}  Nd7 {[%clk 0:02:36]} 14. Nxd7 {[%clk 0:02:31]}  Bxd7 {[%clk 0:02:35]} 15. Nxc5 {[%clk 0:02:31]}  Bxc5 {[%clk 0:02:34]} 16. dxc5 {[%clk 0:02:32]}  Qxc5 {[%clk 0:02:17]} 17. Qd4 {[%clk 0:02:27]}  Qb5 {[%clk 0:02:10]} 18. b3 {[%clk 0:02:23]}  Rfc8 {[%clk 0:02:08]} 19. Rfc1 {[%clk 0:02:21]}  a5 {[%clk 0:02:07]} 20. Rab1 {[%clk 0:02:17]}  a4 {[%clk 0:02:05]} 21. c4 {[%clk 0:02:14]}  dxc4 {[%clk 0:02:00]} 22. bxc4 {[%clk 0:02:14]}  Qc6 {[%clk 0:02:00]} 23. c5 {[%clk 0:02:10]}  Be8 {[%clk 0:01:49]} 24. Bd6 {[%clk 0:02:08]}  Rd8 {[%clk 0:01:41]} 25. h3 {[%clk 0:02:04]}  Rac8 {[%clk 0:01:40]} 26. Rd1 {[%clk 0:01:57]}  Qa6 {[%clk 0:01:38]} 27. Qg4 {[%clk 0:01:44]}  Qc6 {[%clk 0:01:05]} 28. Rd4 {[%clk 0:01:42]}  Bd7 {[%clk 0:00:53]} 29. Be5 {[%clk 0:01:39]}  g6 {[%clk 0:00:46]} 30. Qf4 {[%clk 0:01:38]}  Qxc5 {[%clk 0:00:17]} 31. Qf6 {[%clk 0:01:37]}  Kf8 {[%clk 0:00:08]} 32. Bd6+ {[%clk 0:01:36]} 1-0

[Event "January 9 Early 2024"]
[Site "https://www.chess.com"]
[Date "2024.01.11"]
[Round "8"]
[White "Ranaldi, Lucas"]
[Black "Mahdavi, Reza"]
[Result "1-0"]
[Board "34"]
[TimeControl "180+1"]
[WhiteFideId "1519484"]
[BlackFideId "12595926"]
[WhiteElo "2725"]
[BlackElo "2853"]
[WhiteTeam "NOR"]
[BlackTeam "IRI"]
[WhiteClock "0:00:12"]
[BlackClock "0:01:21"]

1. Nf3 {[%clk 0:03:00]}  Nf6 {[%clk 0:02:58]} 2. c4 {[%clk 0:02:44]}  e6 {[%clk 0:02:57]} 3. g3 {[%clk 0:02:44]}  d5 {[%clk 0:02:57]} 4. Bg2 {[%clk 0:02:44]}  d4 {[%clk 0:02:57]} 5. O-O {[%clk 0:02:45]}  c5 {[%clk 0:02:55]} 6. e3 {[%clk 0:02:45]}  Nc6 {[%clk 0:02:56]} 7. exd4 {[%clk 0:02:45]}  cxd4 {[%clk 0:02:57]} 8. d3 {[%clk 0:02:45]}  Bd6 {[%clk 0:02:57]} 9. Bg5 {[%clk 0:02:45]}  h6 {[%clk 0:02:53]} 10. Bxf6 {[%clk 0:02:45]}  Qxf6 {[%clk 0:02:54]} 11. Nbd2 {[%clk 0:02:45]}  Qe7 {[%clk 0:02:53]} 12. a3 {[%clk 0:02:35]}  a5 {[%clk 0:02:53]} 13. Ne4 {[%clk 0:02:33]}  Bc7 {[%clk 0:02:52]} 14. Rc1 {[%clk 0:02:27]}  O-O {[%clk 0:02:46]} 15. c5 {[%clk 0:02:26]}  Rd8 {[%clk 0:02:43]} 16. Nfd2 {[%clk 0:01:57]}  a4 {[%clk 0:02:25]} 17. Nc4 {[%clk 0:01:56]}  Na5 {[%clk 0:02:25]} 18. Qxa4 {[%clk 0:01:39]}  Bd7 {[%clk 0:02:07]} 19. Qc2 {[%clk 0:01:36]}  Nxc4 {[%clk 0:02:06]} 20. Qxc4 {[%clk 0:01:36]}  Ra5 {[%clk 0:02:02]} 21. Qb4 {[%clk 0:00:46]}  Rb5 {[%clk 0:01:59]} 22. Qd2 {[%clk 0:00:33]}  Bc6 {[%clk 0:01:59]} 23. b4 {[%clk 0:00:30]}  Ra8 {[%clk 0:01:54]} 24. Qb2 {[%clk 0:00:28]}  f5 {[%clk 0:01:48]} 25. Nd2 {[%clk 0:00:28]}  e5 {[%clk 0:01:44]} 26. a4 {[%clk 0:00:15]}  Rxa4 {[%clk 0:01:28]} 27. Qb3+ {[%clk 0:00:15]}  Qf7 {[%clk 0:01:25]} 28. Qxa4 {[%clk 0:00:15]}  e4 {[%clk 0:01:26]} 29. dxe4 {[%clk 0:00:13]}  Rxc5 {[%clk 0:01:25]} 30. Qb3 {[%clk 0:00:13]}  Rb5 {[%clk 0:01:20]} 31. Qxf7+ {[%clk 0:00:12]}  Kxf7 {[%clk 0:01:21]} 32. exf5 {[%clk 0:00:12]} 1-0

[Event "January 9 Early 2024"]
[Site "https://www.chess.com"]
[Date "2024.01.11"]
[Round "8"]
[White "Winkels, Marcel"]
[Black "Ezat, Mohamed"]
[Result "0-1"]
[Board "36"]
[TimeControl "180+1"]
[WhiteFideId "1003887"]
[BlackFideId "10600906"]
[WhiteElo "2016"]
[BlackElo "2460"]
[WhiteTeam "NED"]
[BlackTeam "EGY"]
[WhiteClock "0:00:13"]
[BlackClock "0:01:09"]

1. e4 {[%clk 0:03:00]}  d5 {[%clk 0:02:51]} 2. exd5 {[%clk 0:03:00]}  c6 {[%clk 0:02:50]} 3. d4 {[%clk 0:02:58]}  cxd5 {[%clk 0:02:50]} 4. Bd3 {[%clk 0:02:56]}  Nc6 {[%clk 0:02:48]} 5. c3 {[%clk 0:02:56]}  Qc7 {[%clk 0:02:46]} 6. Ne2 {[%clk 0:02:54]}  Bg4 {[%clk 0:02:46]} 7. f3 {[%clk 0:02:50]}  Bd7 {[%clk 0:02:45]} 8. Bf4 {[%clk 0:02:49]}  e5 {[%clk 0:02:45]} 9. dxe5 {[%clk 0:02:45]}  Nxe5 {[%clk 0:02:45]} 10. O-O {[%clk 0:02:45]}  Bd6 {[%clk 0:02:36]} 11. Re1 {[%clk 0:02:28]}  Ne7 {[%clk 0:02:33]} 12. Nd4 {[%clk 0:02:11]}  O-O {[%clk 0:02:32]} 13. Bxe5 {[%clk 0:01:57]}  Bxe5 {[%clk 0:02:32]} 14. Qe2 {[%clk 0:01:54]}  Bxh2+ {[%clk 0:02:27]} 15. Kh1 {[%clk 0:01:53]}  Bg3 {[%clk 0:02:25]} 16. Rd1 {[%clk 0:01:42]}  Qf4 {[%clk 0:02:14]} 17. Kg1 {[%clk 0:01:19]}  Qh4 {[%clk 0:01:57]} 18. Qe3 {[%clk 0:01:04]}  Ng6 {[%clk 0:01:47]} 19. Nf5 {[%clk 0:00:50]}  Bxf5 {[%clk 0:01:27]} 20. Bxf5 {[%clk 0:00:49]}  Rae8 {[%clk 0:01:27]} 21. Qd4 {[%clk 0:00:46]}  Nf4 {[%clk 0:01:25]} 22. Kf1 {[%clk 0:00:28]}  Re2 {[%clk 0:01:13]} 23. Nd2 {[%clk 0:00:15]}  Qh1+ {[%clk 0:01:09]} 24. Qg1 {[%clk 0:00:13]}  Rf2+ {[%clk 0:01:09]} 0-1

[Event "January 9 Early 2024"]
[Site "https://www.chess.com"]
[Date "2024.01.11"]
[Round "8"]
[White "Skaric, Djuro"]
[Black "Ladan, Nicholas"]
[Result "0-1"]
[Board "37"]
[TimeControl "180+1"]
[WhiteFideId "934569"]
[BlackFideId "30918855"]
[WhiteElo "2300"]
[BlackElo "2483"]
[WhiteTeam "SRB"]
[BlackTeam "USA"]
[WhiteClock "0:00:54"]
[BlackClock "0:00:48"]

1. g3 {[%clk 0:03:00]}  d5 {[%clk 0:02:58]} 2. Bg2 {[%clk 0:03:01]}  c6 {[%clk 0:02:58]} 3. d3 {[%clk 0:03:01]}  g6 {[%clk 0:02:58]} 4. Nf3 {[%clk 0:03:02]}  Bg7 {[%clk 0:02:58]} 5. O-O {[%clk 0:03:03]}  e5 {[%clk 0:02:58]} 6. Nc3 {[%clk 0:03:03]}  Ne7 {[%clk 0:02:58]} 7. e4 {[%clk 0:03:03]}  O-O {[%clk 0:02:58]} 8. h3 {[%clk 0:03:03]}  h6 {[%clk 0:02:58]} 9. Nd2 {[%clk 0:03:03]}  Be6 {[%clk 0:02:58]} 10. f4 {[%clk 0:03:03]}  exf4 {[%clk 0:02:58]} 11. gxf4 {[%clk 0:03:02]}  Qd7 {[%clk 0:02:38]} 12. Kh2 {[%clk 0:03:01]}  f5 {[%clk 0:02:29]} 13. e5 {[%clk 0:03:00]}  g5 {[%clk 0:02:27]} 14. d4 {[%clk 0:02:58]}  c5 {[%clk 0:02:22]} 15. Nf3 {[%clk 0:02:57]}  Nbc6 {[%clk 0:02:17]} 16. Ne2 {[%clk 0:02:54]}  cxd4 {[%clk 0:02:16]} 17. fxg5 {[%clk 0:02:50]}  Nxe5 {[%clk 0:02:11]} 18. gxh6 {[%clk 0:02:48]}  Nxf3+ {[%clk 0:02:05]} 19. Bxf3 {[%clk 0:02:47]}  Be5+ {[%clk 0:02:05]} 20. Kh1 {[%clk 0:02:47]}  Kh8 {[%clk 0:02:01]} 21. Nf4 {[%clk 0:02:46]}  Qd6 {[%clk 0:01:53]} 22. Nxe6 {[%clk 0:02:44]}  Qxe6 {[%clk 0:01:53]} 23. Qe1 {[%clk 0:02:39]}  Qf6 {[%clk 0:01:49]} 24. Bd2 {[%clk 0:02:32]}  Rg8 {[%clk 0:01:48]} 25. Rg1 {[%clk 0:02:24]}  Rxg1+ {[%clk 0:01:38]} 26. Qxg1 {[%clk 0:02:23]}  Rg8 {[%clk 0:01:38]} 27. Bg2 {[%clk 0:02:22]}  f4 {[%clk 0:01:34]} 28. Qf2 {[%clk 0:02:20]}  Nf5 {[%clk 0:01:31]} 29. Qf3 {[%clk 0:01:48]}  Nh4 {[%clk 0:01:23]} 30. Qh5 {[%clk 0:01:37]}  Rxg2 {[%clk 0:01:18]} 31. Re1 {[%clk 0:01:32]}  Qg5 {[%clk 0:00:54]} 32. Qe8+ {[%clk 0:01:02]}  Kh7 {[%clk 0:00:55]} 33. Qf7+ {[%clk 0:01:02]}  Kxh6 {[%clk 0:00:54]} 34. Qf8+ {[%clk 0:01:02]}  Kh7 {[%clk 0:00:50]} 35. Qf7+ {[%clk 0:00:59]}  Bg7 {[%clk 0:00:49]} 36. Bxf4 {[%clk 0:00:54]}  Rh2+ {[%clk 0:00:48]} 0-1